fUSD/lending_fUSD_20250305
["ID","MTS","AMOUNT","RATE_DAILY","PERIOD"]
[355510673,1741216240426,-1324.99,0.00011499,2]
[355510674,1741216240435,-1065.83,0.00011499,2]
[355510675,1741216240444,-269.25662407,0.00011499,2]
[355510676,1741216240453,-500.0,0.00011499,2]
[355510677,1741216240463,-500.0,0.00011499,2]
[355510678,1741216240472,-500.0,0.00011499,2]
[355510679,1741216240481,-1356.52,0.00011499,2]
[355510680,1741216240489,-2518.4,0.00011499,2]
[355510681,1741216240498,-3511.02,0.00011499,2]
[355510682,1741216240507,-500.0,0.00011499,2]
[355510683,1741216240516,-500.0,0.00011499,2]
[355510684,1741216240525,-500.0,0.00011499,2]
[355510685,1741216240533,-500.0,0.00011499,2]
[355510686,1741216240543,-500.0,0.00011499,2]
[355510687,1741216240552,-500.0,0.00011499,2]
[355510688,1741216240561,-500.0,0.00011499,2]
[355510689,1741216240571,-500.0,0.00011499,2]
[355510690,1741216240580,-500.0,0.00011499,2]
[355510691,1741216240589,-944.37,0.00011499,2]
[355510692,1741216240598,-1344.75,0.00011499,2]
[355510693,1741216240608,-500.0,0.00011499,2]
[355510694,1741216240617,-500.0,0.00011499,2]
[355510695,1741216240626,-500.0,0.00011499,2]
[355510696,1741216240635,-626.437865,0.00011499,2]
[355510697,1741216240645,-514.74,0.00011499,2]
[355510698,1741216240655,-725.22,0.00011499,2]
[355510699,1741216240665,-500.0,0.00011499,2]
[355510700,1741216240674,-500.0,0.00011499,2]
[355510701,1741216240684,-526.27,0.00011499,2]
[355510702,1741216240693,-500.0,0.00011499,2]
[355510703,1741216240703,-500.0,0.00011499,2]
[355510704,1741216240712,-824.87,0.00011499,2]
[355510705,1741216240721,-666.08,0.00011499,2]
[355510706,1741216240730,-500.0,0.00011499,2]
[355510707,1741216240740,-984.45,0.00011499,2]
[355510708,1741216240749,-500.0,0.00011499,2]
[355510709,1741216240759,-411.75588041,0.00011499,2]
[355510710,1741216240775,-1425.65411959,0.00011499,2]
[355510711,1741216240784,-753.67,0.00011499,2]
[355510712,1741216240793,-555.39,0.00011499,2]
[355510713,1741216240803,-500.0,0.00011499,2]
[355510714,1741216240812,-767.64,0.00011499,2]
[355510715,1741216240821,-335.63896171,0.00011499,3]
[355510716,1741216240830,-1556.98787428,0.00011499,2]
[355510717,1741216241043,-582.15411021,0.00011499,2]
[355510718,1741216241256,-1699.60028979,0.00011499,2]
[355510719,1741216241268,-1889.12277022,0.00011499,2]
[355510744,1741216243033,-1067.85682253,0.00011399,2]
[355510746,1741216243042,-1000.0,0.000114,2]
[355510748,1741216243051,-500.0,0.00011499,2]
[355510750,1741216243060,-578.17,0.00011499,2]
[355510752,1741216243069,-958.18038817,0.00011499,2]
[355510802,1741216243775,-232072.57647996,0.00011499,2]
[355510861,1741216246248,-500.0,0.00011498,2]
[355510862,1741216246256,-1000.0,0.00011499,2]
[355510863,1741216246265,-93971.55908121,0.00011499,2]
[355510864,1741216246276,-544.38239173,0.00011499,2]
[355510865,1741216246287,-764.21141403,0.00011499,2]
[355510866,1741216246304,-1067.85682253,0.00011399,2]
[355510867,1741216246318,-493.01517343,0.00011499,2]
[355510871,1741217210950,700.0,9.084e-05,2]
[355510873,1741217332828,386.43,8.649e-05,2]
[355510893,1741217432186,-574.97125657,0.00010454,2]
[355510897,1741217432244,-125.02874343,0.00010454,2]
[355510898,1741217432254,-519.45887017,0.00010547,2]
[355510899,1741217432265,-480.54112983,0.00010547,2]
[355510900,1741217432275,-104.31887117,0.00010568,2]
[355510901,1741217432286,-60.69112883,0.00010568,2]
[355510902,1741217432295,-250.0,0.00010573,2]
[355510903,1741217432304,-326.75887115,0.00010784,2]
[355510904,1741217432316,-4368.04882973,0.00010784,2]
[355510905,1741217432328,-3405.17045651,0.00010784,2]
[355510906,1741217432337,-183.01,0.00010784,2]
[355510907,1741217432346,-234.17,0.00010827,2]
[355510908,1741217432355,-386.43,0.00010912,2]
[355510909,1741217432364,-1281.69829649,0.0001099,2]
[355510910,1741217432388,-22134.67139,0.0001099,2]
[355510911,1741217432520,-3600.54847844,0.0001099,2]
[355510912,1741217432533,-1591.67605475,0.0001099,2]
[355510913,1741217432546,-286.24606077,0.0001099,2]
[355510914,1741217432558,-2039.72645244,0.0001099,2]
[355510916,1741217432570,-1237.02750826,0.0001099,2]
[355510918,1741217432582,-1486.97959309,0.0001099,2]
[355510921,1741217432593,-5008.0021072,0.0001099,2]
[355510964,1741217438133,-90624.99999995,0.0001099,2]
[355510965,1741217438181,-6967.53826963,0.0001099,2]
[355510966,1741217438190,-7010.58939368,0.00010992,2]
[355510967,1741217438200,-7010.58939368,0.00010995,2]
[355510968,1741217438209,-1228.43061015,0.00011,2]
[355510969,1741217438226,-3276.34966985,0.00011,2]
[355510970,1741217438236,-550.0,0.00011,2]
[355510971,1741217438246,-8471.36578943,0.00011004,2]
[355510972,1741217438256,-7717.70210204,0.00011005,2]
[355510973,1741217438266,-7717.70210204,0.00011029,2]
[355510974,1741217438276,-32420.16286719,0.00011043,2]
[355510975,1741217438285,-1061.0,0.00011047,2]
[355510976,1741217438295,-781.24899841,0.00011047,2]
[355510977,1741217438304,-39420.07449467,0.00011048,2]
[355510978,1741217438315,-1231.32874506,0.00011048,2]
[355510979,1741217438378,-95607.71097129,0.00011048,2]
[355510980,1741217438387,-8471.36578943,0.00011049,2]
[355510981,1741217438397,-105482.21902541,0.0001105,2]
[355510982,1741217438409,-4199.11425279,0.0001105,2]
[355511025,1741217440323,-1600.65,0.0001105,2]
[355511026,1741217440336,-717.10633169,0.0001105,2]
[355511027,1741217440347,-301.92197159,0.0001105,2]
[355511028,1741217440358,-2976.20822404,0.0001105,2]
[355511029,1741217440370,-3583.06796825,0.0001105,2]
[355511030,1741217440485,-380.43,0.0001105,2]
[355511031,1741217440497,-752.206616,0.0001105,2]
[355511032,1741217440508,-435.38038272,0.0001105,2]
[355511033,1741217440520,-2034.52399846,0.0001105,2]
[355511034,1741217440532,-2793.02318066,0.0001105,2]
[355511035,1741217440560,-11003.26225941,0.0001105,2]
[355511036,1741217440569,-32420.16286719,0.00011052,2]
[355511037,1741217440579,-540.83524345,0.00011053,2]
[355511038,1741217440588,-8471.36578943,0.00011055,2]
[355511039,1741217440598,-540.83524345,0.0001106,2]
[355511040,1741217440607,-540.83524345,0.00011061,2]
[355511041,1741217440617,-1440.43141357,0.00011067,2]
[355511042,1741217440628,-744.7533081,0.00011067,2]
[355511043,1741217440639,-2601.02550465,0.00011067,2]
[355511044,1741217440673,-22649.63680649,0.00011067,2]
[355511045,1741217440685,-589.08587496,0.00011067,2]
[355511046,1741217440696,-311.4489,0.00011067,2]
[355511047,1741217440714,-4083.78105942,0.00011067,2]
[355511048,1741217440723,-7010.58939368,0.00011071,2]
[355511049,1741217440733,-781.24899841,0.00011084,2]
[355511050,1741217440742,-6221.77352003,0.00011092,2]
[355511056,1741217443282,-1495.92858201,0.00011092,2]
[355511057,1741217443292,-781.24899841,0.00011094,2]
[355511058,1741217443302,-20500.61967606,0.00011177,2]
[355511063,1741217444321,-10178.85853417,0.00011177,2]
[355511064,1741217444332,-831.07485707,0.00011398,2]
[355511065,1741217444344,-831.07485701,0.00011398,2]
[355511066,1741217444354,-831.07485701,0.00011398,2]
[355511067,1741217444364,-338.9563,0.00011399,2]
[355511068,1741217444374,-656.01680938,0.00011399,2]
[355511069,1741217444384,-994.61,0.000114,2]
[355511070,1741217444393,-178.43861081,0.000114,2]
[355511071,1741217444402,-2848.42923534,0.000114,2]
[355511072,1741217444412,-300.57929528,0.0001149,2]
[355511073,1741217444421,-300.57929528,0.0001149,2]
[355511074,1741217444431,-300.57929528,0.0001149,2]
[355511075,1741217444440,-15578.45487102,0.00011498,2]
[355511076,1741217444450,-500.0,0.00011498,2]
[355511077,1741217444459,-500.0,0.00011498,2]
[355511078,1741217444469,-500.0,0.00011498,2]
[355511079,1741217444478,-500.0,0.00011498,2]
[355511080,1741217444488,-500.0,0.00011498,2]
[355511081,1741217444497,-500.0,0.00011498,2]
[355511082,1741217444507,-473.429886,0.00011498,2]
[355511083,1741217444516,-548.133132,0.00011498,2]
[355511084,1741217444525,-500.0,0.00011498,2]
[355511085,1741217444534,-500.0,0.00011498,2]
[355511086,1741217444545,-500.0,0.00011498,2]
[355511087,1741217444555,-500.0,0.00011498,2]
[355511088,1741217444565,-500.0,0.00011498,2]
[355511089,1741217444574,-500.0,0.00011498,2]
[355511090,1741217444584,-500.0,0.00011498,2]
[355511091,1741217444593,-511.34,0.00011498,2]
[355511092,1741217444602,-500.0,0.00011498,2]
[355511093,1741217444611,-500.0,0.00011498,2]
[355511094,1741217444620,-500.0,0.00011498,2]
[355511095,1741217444630,-3004.59,0.00011498,2]
[355511096,1741217444640,-925.44,0.00011498,2]
[355511097,1741217444650,-500.0,0.00011498,2]
[355511098,1741217444665,-638.5434912,0.00011498,2]
[355511099,1741217444676,-1144.08,0.00011498,2]
[355511100,1741217444686,-880.55,0.00011498,2]
[355511101,1741217444694,-762.08,0.00011498,2]
[355511102,1741217444705,-500.0,0.00011498,2]
[355511103,1741217444714,-645.8,0.00011498,2]
[355511104,1741217444723,-653.68,0.00011498,2]
[355511105,1741217444733,-554.08,0.00011498,2]
[355511106,1741217444746,-1372.97,0.00011498,2]
[355511107,1741217444755,-500.0,0.00011498,2]
[355511108,1741217444765,-500.0,0.00011498,2]
[355511109,1741217444774,-514.86,0.00011498,2]
[355511110,1741217444784,-1690.36,0.00011498,2]
[355511111,1741217444793,-676.78,0.00011498,2]
[355511112,1741217444803,-500.0,0.00011498,2]
[355511113,1741217444813,-1013.28,0.00011498,2]
[355511114,1741217444823,-500.0,0.00011498,2]
[355511115,1741217444832,-500.0,0.00011498,2]
[355511116,1741217444842,-526.78,0.00011498,2]
[355511117,1741217444851,-2816.9,0.00011498,2]
[355511118,1741217444860,-624.64,0.00011498,2]
[355511119,1741217444869,-526.59,0.00011498,2]
[355511120,1741217444879,-500.0,0.00011498,2]
[355511121,1741217444887,-500.0,0.00011498,2]
[355511122,1741217444897,-500.0,0.00011498,2]
[355511123,1741217444908,-961.1,0.00011498,2]
[355511124,1741217444918,-796.81,0.00011498,2]
[355511125,1741217444927,-548.79,0.00011498,2]
[355511126,1741217444936,-500.0,0.00011498,2]
[355511127,1741217444945,-2077.19,0.00011498,2]
[355511128,1741217444955,-536.48,0.00011498,2]
[355511129,1741217444964,-743.91,0.00011498,2]
[355511130,1741217444973,-500.0,0.00011498,2]
[355511131,1741217444983,-500.0,0.00011498,2]
[355511132,1741217444992,-500.0,0.00011498,2]
[355511133,1741217445002,-500.0,0.00011498,2]
[355511134,1741217445011,-594.0,0.00011498,2]
[355511135,1741217445020,-500.0,0.00011498,2]
[355511136,1741217445030,-500.0,0.00011498,2]
[355511137,1741217445039,-3741.92,0.00011498,2]
[355511138,1741217445048,-500.0,0.00011498,2]
[355511139,1741217445057,-500.0,0.00011498,2]
[355511140,1741217445066,-500.0,0.00011498,2]
[355511141,1741217445075,-500.0,0.00011498,2]
[355511142,1741217445084,-500.0,0.00011498,2]
[355511143,1741217445094,-844.33,0.00011498,2]
[355511144,1741217445103,-500.0,0.00011498,2]
[355511145,1741217445112,-500.0,0.00011498,2]
[355511146,1741217445122,-1007.0,0.00011498,2]
[355511147,1741217445131,-500.0,0.00011498,2]
[355511148,1741217445141,-500.0,0.00011498,2]
[355511149,1741217445150,-500.0,0.00011498,2]
[355511150,1741217445160,-605.95,0.00011498,2]
[355511151,1741217445169,-657.4,0.00011498,2]
[355511152,1741217445179,-687.41,0.00011498,2]
[355511153,1741217445188,-500.0,0.00011498,2]
[355511154,1741217445197,-705.61,0.00011498,2]
[355511155,1741217445206,-500.0,0.00011498,2]
[355511156,1741217445215,-500.0,0.00011498,2]
[355511157,1741217445224,-697.49,0.00011498,2]
[355511158,1741217445234,-579.86,0.00011498,2]
[355511159,1741217445243,-500.0,0.00011498,2]
[355511160,1741217445252,-1294.05,0.00011498,2]
[355511161,1741217445262,-2018.89,0.00011498,2]
[355511162,1741217445271,-500.0,0.00011498,2]
[355511163,1741217445280,-500.0,0.00011498,2]
[355511164,1741217445289,-500.0,0.00011498,2]
[355511165,1741217445299,-1061.43,0.00011498,2]
[355511166,1741217445308,-500.0,0.00011498,2]
[355511167,1741217445318,-500.0,0.00011498,2]
[355511168,1741217445327,-616.63,0.00011498,2]
[355511169,1741217445337,-528.89,0.00011498,2]
[355511170,1741217445346,-1075.51,0.00011498,2]
[355511171,1741217445357,-500.0,0.00011498,2]
[355511172,1741217445366,-7142.83,0.00011498,2]
[355511173,1741217445376,-500.0,0.00011498,2]
[355511174,1741217445386,-514.68,0.00011498,2]
[355511175,1741217445395,-549.81,0.00011498,2]
[355511176,1741217445404,-500.0,0.00011498,2]
[355511177,1741217445414,-693.7,0.00011498,2]
[355511178,1741217445424,-500.0,0.00011498,2]
[355511179,1741217445433,-500.0,0.00011498,2]
[355511180,1741217445443,-568.17,0.00011498,2]
[355511181,1741217445453,-500.0,0.00011498,2]
[355511182,1741217445464,-558.97,0.00011498,2]
[355511183,1741217445473,-527.3,0.00011498,2]
[355511184,1741217445482,-500.0,0.00011498,2]
[355511185,1741217445491,-1358.98,0.00011498,2]
[355511186,1741217445501,-683.65,0.00011498,2]
[355511187,1741217445510,-500.0,0.00011498,2]
[355511188,1741217445519,-500.0,0.00011498,2]
[355511189,1741217445528,-500.0,0.00011498,2]
[355511190,1741217445537,-500.0,0.00011498,2]
[355511191,1741217445546,-440.55028276,0.00011498,2]
[355511192,1741217445556,-500.0,0.00011498,2]
[355511193,1741217445565,-1021.42,0.00011498,2]
[355511194,1741217445574,-3787.21,0.00011498,2]
[355511195,1741217445584,-413.7201878,0.00011498,2]
[355511196,1741217445593,-1655.26,0.00011498,2]
[355511197,1741217445602,-767.97,0.00011498,2]
[355511198,1741217445612,-500.0,0.00011498,2]
[355511199,1741217445621,-874.3,0.00011498,2]
[355511200,1741217445630,-500.0,0.00011498,2]
[355511201,1741217445639,-604.64,0.00011498,2]
[355511202,1741217445649,-8280.17,0.00011498,2]
[355511203,1741217445660,-500.0,0.00011498,2]
[355511204,1741217445670,-590.23,0.00011498,2]
[355511205,1741217445679,-500.0,0.00011498,2]
[355511206,1741217445689,-500.0,0.00011498,2]
[355511207,1741217445698,-546.86170588,0.00011498,2]
[355511208,1741217445709,-379.53867698,0.00011499,2]
[355511209,1741217445719,-500.0,0.00011499,2]
[355511210,1741217445728,-500.0,0.00011499,2]
[355511211,1741217445740,-500.0,0.00011499,2]
[355511212,1741217445750,-500.0,0.00011499,2]
[355511213,1741217445759,-500.0,0.00011499,2]
[355511214,1741217445769,-500.0,0.00011499,2]
[355511215,1741217445779,-304.2093582,0.00011499,2]
[355511216,1741217445788,-500.0,0.00011499,2]
[355511217,1741217445797,-500.0,0.00011499,2]
[355511218,1741217445807,-500.0,0.00011499,2]
[355511219,1741217445816,-370.45732346,0.00011499,2]
[355511220,1741217445826,-298.99159296,0.00011499,2]
[355511221,1741217445836,-443.69083981,0.00011499,2]
[355511222,1741217445845,-500.0,0.00011499,2]
[355511223,1741217445855,-500.0,0.00011499,2]
[355511224,1741217445864,-500.0,0.00011499,2]
[355511225,1741217445874,-500.0,0.00011499,2]
[355511226,1741217445883,-500.0,0.00011499,2]
[355511227,1741217445893,-190.78778019,0.00011499,2]
[355511228,1741217445903,-500.0,0.00011499,2]
[355511229,1741217445913,-500.0,0.00011499,2]
[355511230,1741217445922,-500.0,0.00011499,2]
[355511231,1741217445932,-500.0,0.00011499,2]
[355511232,1741217445941,-500.0,0.00011499,2]
[355511233,1741217445951,-500.0,0.00011499,2]
[355511234,1741217445960,-500.0,0.00011499,2]
[355511235,1741217445969,-500.0,0.00011499,2]
[355511236,1741217445978,-500.0,0.00011499,2]
[355511237,1741217445987,-244.37064197,0.00011499,2]
[355511239,1741217445996,-500.0,0.00011499,2]
[355511240,1741217446006,-500.0,0.00011499,2]
[355511241,1741217446016,-500.0,0.00011499,2]
[355511242,1741217446025,-500.0,0.00011499,2]
[355511243,1741217446034,-500.0,0.00011499,2]
[355511244,1741217446043,-526.48,0.00011499,2]
[355511245,1741217446053,-500.0,0.00011499,2]
[355511246,1741217446062,-500.0,0.00011499,2]
[355511247,1741217446071,-500.0,0.00011499,2]
[355511248,1741217446081,-500.0,0.00011499,2]
[355511249,1741217446090,-500.0,0.00011499,2]
[355511250,1741217446100,-500.0,0.00011499,2]
[355511251,1741217446109,-500.0,0.00011499,2]
[355511252,1741217446119,-500.0,0.00011499,2]
[355511253,1741217446128,-500.0,0.00011499,2]
[355511254,1741217446137,-500.0,0.00011499,2]
[355511255,1741217446146,-500.0,0.00011499,2]
[355511256,1741217446155,-224.14896008,0.00011499,2]
[355511257,1741217446166,-500.0,0.00011499,2]
[355511258,1741217446175,-500.0,0.00011499,2]
[355511259,1741217446184,-500.0,0.00011499,2]
[355511260,1741217446194,-500.0,0.00011499,2]
[355511261,1741217446203,-500.0,0.00011499,2]
[355511262,1741217446401,-500.0,0.00011499,2]
[355511263,1741217446411,-500.0,0.00011499,2]
[355511264,1741217446420,-500.0,0.00011499,2]
[355511265,1741217446430,-3433.36,0.00011499,2]
[355511266,1741217446440,-500.0,0.00011499,2]
[355511267,1741217446449,-500.0,0.00011499,2]
[355511268,1741217446459,-500.0,0.00011499,2]
[355511269,1741217446468,-500.0,0.00011499,2]
[355511270,1741217446478,-500.0,0.00011499,2]
[355511271,1741217446487,-500.0,0.00011499,2]
[355511272,1741217446497,-500.0,0.00011499,2]
[355511273,1741217446506,-500.0,0.00011499,2]
[355511274,1741217446516,-760.81,0.00011499,2]
[355511275,1741217446525,-500.0,0.00011499,2]
[355511276,1741217446535,-500.0,0.00011499,2]
[355511277,1741217446545,-500.0,0.00011499,2]
[355511278,1741217446554,-500.0,0.00011499,2]
[355511279,1741217446563,-500.0,0.00011499,2]
[355511280,1741217446575,-500.0,0.00011499,2]
[355511281,1741217446584,-500.0,0.00011499,2]
[355511282,1741217446593,-295.6678382,0.00011499,2]
[355511283,1741217446603,-500.0,0.00011499,2]
[355511284,1741217446612,-597.93,0.00011499,2]
[355511285,1741217446622,-500.0,0.00011499,2]
[355511287,1741217446631,-500.0,0.00011499,2]
[355511288,1741217446641,-500.0,0.00011499,2]
[355511289,1741217446650,-628.28,0.00011499,2]
[355511290,1741217446663,-500.0,0.00011499,2]
[355511291,1741217446673,-500.0,0.00011499,2]
[355511292,1741217446683,-500.0,0.00011499,2]
[355511293,1741217446692,-500.0,0.00011499,2]
[355511294,1741217446702,-500.0,0.00011499,2]
[355511295,1741217446712,-500.0,0.00011499,2]
[355511296,1741217446722,-500.0,0.00011499,2]
[355511297,1741217446731,-500.0,0.00011499,2]
[355511298,1741217446741,-500.0,0.00011499,2]
[355511299,1741217446751,-500.0,0.00011499,2]
[355511300,1741217446760,-500.0,0.00011499,2]
[355511301,1741217446769,-500.0,0.00011499,2]
[355511302,1741217446779,-500.0,0.00011499,2]
[355511303,1741217446788,-500.0,0.00011499,2]
[355511304,1741217446798,-500.0,0.00011499,2]
[355511305,1741217446807,-500.0,0.00011499,2]
[355511306,1741217446817,-500.0,0.00011499,2]
[355511307,1741217446826,-500.0,0.00011499,2]
[355511308,1741217446836,-500.0,0.00011499,2]
[355511309,1741217446845,-444.12252413,0.00011499,2]
[355511310,1741217446855,-298.68,0.00011499,2]
[355511311,1741217446864,-473.71,0.00011499,2]
[355511312,1741217446873,-500.0,0.00011499,2]
[355511313,1741217446883,-500.0,0.00011499,2]
[355511314,1741217446892,-500.0,0.00011499,2]
[355511315,1741217446902,-500.0,0.00011499,2]
[355511316,1741217446912,-500.0,0.00011499,2]
[355511317,1741217446921,-500.0,0.00011499,2]
[355511318,1741217446930,-500.0,0.00011499,2]
[355511319,1741217446940,-500.0,0.00011499,2]
[355511320,1741217446949,-500.0,0.00011499,2]
[355511321,1741217446958,-500.0,0.00011499,2]
[355511322,1741217446967,-500.0,0.00011499,2]
[355511323,1741217446976,-500.0,0.00011499,2]
[355511324,1741217446985,-500.0,0.00011499,2]
[355511325,1741217446995,-500.0,0.00011499,2]
[355511326,1741217447004,-500.0,0.00011499,2]
[355511327,1741217447013,-500.0,0.00011499,2]
[355511328,1741217447022,-500.0,0.00011499,2]
[355511329,1741217447032,-500.0,0.00011499,2]
[355511330,1741217447041,-500.0,0.00011499,2]
[355511331,1741217447050,-550.38,0.00011499,2]
[355511332,1741217447059,-500.0,0.00011499,2]
[355511333,1741217447068,-500.0,0.00011499,2]
[355511334,1741217447078,-1983.22438,0.00011499,2]
[355511335,1741217447087,-500.0,0.00011499,2]
[355511336,1741217447096,-500.0,0.00011499,2]
[355511337,1741217447105,-905.02,0.00011499,2]
[355511338,1741217447114,-572.76,0.00011499,2]
[355511339,1741217447124,-500.0,0.00011499,2]
[355511340,1741217447133,-500.0,0.00011499,2]
[355511341,1741217447142,-500.0,0.00011499,2]
[355511342,1741217447151,-500.0,0.00011499,2]
[355511343,1741217447160,-790.5,0.00011499,2]
[355511344,1741217447169,-500.0,0.00011499,2]
[355511345,1741217447179,-546.70116252,0.00011499,2]
[355511346,1741217447188,-500.0,0.00011499,2]
[355511347,1741217447197,-1760.85,0.00011499,2]
[355511348,1741217447207,-500.0,0.00011499,2]
[355511349,1741217447216,-529.17,0.00011499,2]
[355511350,1741217447225,-500.0,0.00011499,2]
[355511351,1741217447234,-500.0,0.00011499,2]
[355511352,1741217447243,-500.0,0.00011499,2]
[355511353,1741217447253,-1000.0,0.00011499,2]
[355511354,1741217447262,-1783.38,0.00011499,2]
[355511355,1741217447271,-500.0,0.00011499,2]
[355511356,1741217447280,-500.0,0.00011499,2]
[355511357,1741217447289,-500.0,0.00011499,2]
[355511358,1741217447299,-500.0,0.00011499,2]
[355511359,1741217447308,-1264.74,0.00011499,2]
[355511360,1741217447318,-500.0,0.00011499,2]
[355511361,1741217447327,-500.0,0.00011499,2]
[355511362,1741217447336,-899.17,0.00011499,2]
[355511363,1741217447346,-500.0,0.00011499,2]
[355511364,1741217447355,-500.0,0.00011499,2]
[355511365,1741217447365,-500.0,0.00011499,2]
[355511366,1741217447375,-500.0,0.00011499,2]
[355511367,1741217447384,-500.0,0.00011499,2]
[355511368,1741217447394,-583.20877646,0.00011499,2]
[355511369,1741217447403,-500.0,0.00011499,2]
[355511370,1741217447413,-576.1,0.00011499,2]
[355511371,1741217447422,-500.0,0.00011499,2]
[355511372,1741217447431,-500.0,0.00011499,2]
[355511373,1741217447441,-500.0,0.00011499,2]
[355511374,1741217447451,-500.0,0.00011499,2]
[355511375,1741217447460,-500.0,0.00011499,2]
[355511376,1741217447470,-500.0,0.00011499,2]
[355511377,1741217447480,-1338.9,0.00011499,2]
[355511378,1741217447489,-500.0,0.00011499,2]
[355511379,1741217447499,-529.07,0.00011499,2]
[355511380,1741217447508,-3467.03,0.00011499,2]
[355511381,1741217447517,-500.0,0.00011499,2]
[355511382,1741217447526,-500.0,0.00011499,2]
[355511383,1741217447536,-1262.65,0.00011499,2]
[355511384,1741217447545,-500.0,0.00011499,2]
[355511385,1741217447554,-500.0,0.00011499,2]
[355511386,1741217447563,-500.0,0.00011499,2]
[355511387,1741217447574,-500.0,0.00011499,2]
[355511388,1741217447583,-500.0,0.00011499,2]
[355511389,1741217447592,-500.0,0.00011499,2]
[355511390,1741217447602,-304.56826291,0.00011499,2]
[355511391,1741217447611,-500.0,0.00011499,2]
[355511392,1741217447621,-500.0,0.00011499,2]
[355511393,1741217447630,-500.0,0.00011499,2]
[355511394,1741217447639,-500.0,0.00011499,2]
[355511395,1741217447648,-500.0,0.00011499,2]
[355511396,1741217447657,-500.0,0.00011499,2]
[355511397,1741217447672,-500.0,0.00011499,2]
[355511398,1741217447681,-500.0,0.00011499,2]
[355511399,1741217447690,-500.0,0.00011499,2]
[355511400,1741217447699,-500.0,0.00011499,2]
[355511401,1741217447709,-500.0,0.00011499,2]
[355511402,1741217447719,-500.0,0.00011499,2]
[355511403,1741217447729,-643.56,0.00011499,2]
[355511404,1741217447739,-500.0,0.00011499,2]
[355511405,1741217447750,-500.0,0.00011499,2]
[355511406,1741217447760,-500.0,0.00011499,2]
[355511407,1741217447769,-155.0,0.00011499,3]
[355511408,1741217447778,-396.97080552,0.00011499,2]
[355511409,1741217447788,-500.0,0.00011499,2]
[355511410,1741217447797,-500.0,0.00011499,2]
[355511411,1741217447807,-500.0,0.00011499,2]
[355511412,1741217447816,-500.0,0.00011499,2]
[355511413,1741217447825,-500.0,0.00011499,2]
[355511414,1741217447835,-500.0,0.00011499,2]
[355511415,1741217447844,-553.17014444,0.00011499,2]
[355511416,1741217447853,-167.81948085,0.00011499,3]
[355511417,1741217447863,-1295.0,0.000115,2]
[355511418,1741217447871,-32310.79429674,0.000115,2]
[355511419,1741217447890,-8665.65283208,0.000115,2]
[355511420,1741217447901,-1741.16837425,0.000115,2]
[355511421,1741217447913,-2429.625,0.000115,2]
[355511422,1741217447923,-1772.16665824,0.000115,2]
[355511423,1741217447968,-500.0,0.00011498,2]
[355511424,1741217447978,-20513.52788047,0.000115,2]
[355511425,1741217448459,-10063.36738432,0.000115,2]
[355511426,1741217448480,-3281.0519054,0.000115,2]
[355511427,1741217453725,700.0,0.0001018,2]
[355511428,1741218358683,347.78,8.492e-05,2]
[355511433,1741218632514,-150.0,0.0001042,7]
[355511434,1741218632523,-1000.0,0.00010444,2]
[355511435,1741218632533,-250.0,0.00010499,2]
[355511436,1741218632542,-159.91,0.00010573,2]